fUST/lending_fUST_20240801
["ID","MTS","AMOUNT","RATE_DAILY","PERIOD"]
[333813940,1722526264758,-534.35,0.00016712,2]
[333813941,1722526264768,-705.26,0.00016712,2]
[333813942,1722526264777,-1051.75,0.00016712,2]
[333813943,1722526264787,-327.65318489,0.00016712,2]
[333813944,1722526264797,-500.0,0.00016712,2]
[333813945,1722526264807,-500.0,0.00016712,2]
[333813946,1722526264817,-1053.29,0.00016712,2]
[333813947,1722526264827,-500.0,0.00016712,2]
[333813948,1722526264836,-500.0,0.00016712,2]
[333813949,1722526264846,-630.64,0.00016712,2]
[333813950,1722526264856,-588.74096073,0.00016712,2]
[333813951,1722526264867,-500.0,0.00016712,2]
[333813952,1722526264876,-500.0,0.00016712,2]
[333813953,1722526264886,-507.72,0.00016712,2]
[333813954,1722526264896,-958.75,0.00016712,2]
[333813955,1722526264905,-2970.46,0.00016712,2]
[333813956,1722526264915,-500.0,0.00016712,2]
[333813957,1722526264924,-500.0,0.00016712,2]
[333813958,1722526264934,-601.25,0.00016712,2]
[333813959,1722526264943,-500.0,0.00016712,2]
[333813960,1722526264952,-537.12,0.00016712,2]
[333813961,1722526264962,-500.0,0.00016712,2]
[333813962,1722526264971,-3014.99,0.00016712,2]
[333813963,1722526264980,-1097.58,0.00016712,2]
[333813964,1722526264994,-1026.8,0.00016712,2]
[333813965,1722526265003,-1001.77,0.00016712,2]
[333813966,1722526265014,-1834.64,0.00016712,2]
[333813967,1722526265024,-717.67,0.00016712,2]
[333813968,1722526265033,-560.01,0.00016712,2]
[333813969,1722526265042,-576.6,0.00016712,2]
[333813970,1722526265052,-853.2,0.00016712,2]
[333813971,1722526265062,-618.56,0.00016712,2]
[333813972,1722526265071,-500.0,0.00016712,2]
[333813973,1722526265080,-515.84,0.00016712,2]
[333813974,1722526265089,-500.0,0.00016712,2]
[333813975,1722526265099,-602.07,0.00016712,2]
[333813976,1722526265108,-500.0,0.00016712,2]
[333813977,1722526265117,-959.6,0.00016712,2]
[333813978,1722526265127,-500.0,0.00016712,2]
[333813979,1722526265147,-593.62,0.00016712,2]
[333813980,1722526265156,-813.83,0.00016712,2]
[333813981,1722526265166,-500.0,0.00016712,2]
[333813982,1722526265175,-527.79,0.00016712,2]
[333813983,1722526265186,-500.0,0.00016712,2]
[333813984,1722526265196,-745.56,0.00016712,2]
[333813985,1722526265206,-604.1,0.00016712,2]
[333813986,1722526265217,-627.50981848,0.00016712,2]
[333813987,1722526265226,-1389.84,0.00016712,2]
[333813988,1722526265241,-2092.69,0.00016712,2]
[333813989,1722526265251,-663.98,0.00016712,2]
[333813990,1722526265261,-646.69,0.00016986,2]
[333813991,1722526265270,-500.0,0.00016986,2]
[333813992,1722526265280,-151.0,0.00016986,2]
[333813993,1722526265289,-208.51,0.00016986,2]
[333813994,1722526265298,-500.0,0.00016986,2]
[333813995,1722526265307,-500.0,0.00016986,2]
[333813996,1722526265317,-500.0,0.00016986,2]
[333813997,1722526265327,-555.92,0.00016986,2]
[333813998,1722526265336,-576.59,0.00016986,2]
[333813999,1722526265345,-522.23,0.00016986,2]
[333814000,1722526265355,-500.0,0.00016986,2]
[333814001,1722526265364,-923.56,0.00016986,2]
[333814002,1722526265379,-541.8,0.00016986,2]
[333814003,1722526265388,-801.84,0.00016986,2]
[333814004,1722526265399,-500.0,0.00016986,2]
[333814005,1722526265408,-500.0,0.00016986,2]
[333814006,1722526265419,-500.0,0.00016986,2]
[333814007,1722526265429,-716.89,0.00016986,2]
[333814008,1722526265438,-738.18,0.00016986,2]
[333814009,1722526265448,-534.35,0.00016986,2]
[333814010,1722526265459,-705.26,0.00016986,2]
[333814011,1722526265469,-1051.75,0.00016986,2]
[333814012,1722526265479,-500.0,0.00016986,2]
[333814013,1722526265491,-500.0,0.00016986,2]
[333814014,1722526265501,-1053.29,0.00016986,2]
[333814015,1722526265512,-500.0,0.00016986,2]
[333814016,1722526265521,-500.0,0.00016986,2]
[333814017,1722526265530,-630.64,0.00016986,2]
[333814018,1722526265540,-500.0,0.00016986,2]
[333814019,1722526265549,-500.0,0.00016986,2]
[333814020,1722526265559,-507.72,0.00016986,2]
[333814021,1722526265570,-958.75,0.00016986,2]
[333814022,1722526265579,-2970.46,0.00016986,2]
[333814023,1722526265589,-500.0,0.00016986,2]
[333814024,1722526265599,-500.0,0.00016986,2]
[333814025,1722526265608,-601.25,0.00016986,2]
[333814026,1722526265618,-500.0,0.00016986,2]
[333814027,1722526265628,-537.12,0.00016986,2]
[333814028,1722526265638,-500.0,0.00016986,2]
[333814029,1722526265650,-3014.99,0.00016986,2]
[333814030,1722526265659,-1097.58,0.00016986,2]
[333814031,1722526265670,-1026.8,0.00016986,2]
[333814032,1722526265680,-1001.77,0.00016986,2]
[333814033,1722526265690,-1834.64,0.00016986,2]
[333814034,1722526265700,-717.67,0.00016986,2]
[333814035,1722526265711,-560.01,0.00016986,2]
[333814036,1722526265721,-576.6,0.00016986,2]
[333814037,1722526265731,-853.2,0.00016986,2]
[333814038,1722526265744,-618.56,0.00016986,2]
[333814039,1722526265755,-500.0,0.00016986,2]
[333814040,1722526265765,-515.84,0.00016986,2]
[333814041,1722526265776,-500.0,0.00016986,2]
[333814042,1722526265787,-602.07,0.00016986,2]
[333814043,1722526265799,-500.0,0.00016986,2]
[333814044,1722526265809,-959.6,0.00016986,2]
[333814045,1722526265819,-500.0,0.00016986,2]
[333814046,1722526265829,-593.62,0.00016986,2]
[333814047,1722526265840,-813.83,0.00016986,2]
[333814048,1722526265850,-500.0,0.00016986,2]
[333814049,1722526265861,-527.79,0.00016986,2]
[333814050,1722526265871,-500.0,0.00016986,2]
[333814051,1722526265882,-745.56,0.00016986,2]
[333814052,1722526265892,-604.1,0.00016986,2]
[333814053,1722526265902,-1389.84,0.00016986,2]
[333814054,1722526265912,-2092.69,0.00016986,2]
[333814055,1722526265921,-663.98,0.00016986,2]
[333814056,1722526265931,-1000.0,0.00017,17]
[333814057,1722526265941,-957.56569676,0.00017019,2]
[333814058,1722526265951,-215.62414338,0.00017019,2]
[333814059,1722526265962,-151.0,0.00017019,2]
[333814060,1722526265971,-333.0,0.00017112,2]
[333814061,1722526265981,-646.69,0.0001726,2]
[333814062,1722526265994,-500.0,0.0001726,2]
[333814063,1722526266004,-208.51,0.0001726,2]
[333814064,1722526266013,-155.126107,0.0001726,2]
[333814065,1722526266023,-219.5322726,0.0001726,2]
[333814066,1722526266033,-500.0,0.0001726,2]
[333814067,1722526266043,-500.0,0.0001726,2]
[333814068,1722526266054,-555.92,0.0001726,2]
[333814069,1722526266064,-576.59,0.0001726,2]
[333814070,1722526266074,-522.23,0.0001726,2]
[333814071,1722526266083,-500.0,0.0001726,2]
[333814072,1722526266093,-923.56,0.0001726,2]
[333814073,1722526266197,-541.8,0.0001726,2]
[333814074,1722526266207,-151.0,0.0001726,2]
[333814075,1722526266217,-801.84,0.0001726,2]
[333814076,1722526266228,-500.0,0.0001726,2]
[333814077,1722526266242,-500.0,0.0001726,2]
[333814078,1722526266252,-500.0,0.0001726,2]
[333814079,1722526266262,-738.18,0.0001726,2]
[333814080,1722526266273,-716.89,0.0001726,2]
[333814081,1722526266283,-534.35,0.0001726,2]
[333814082,1722526266293,-705.26,0.0001726,2]
[333814083,1722526266303,-1051.75,0.0001726,2]
[333814084,1722526266313,-500.0,0.0001726,2]
[333814085,1722526266323,-500.0,0.0001726,2]
[333814086,1722526266333,-1053.29,0.0001726,2]
[333814087,1722526266343,-500.0,0.0001726,2]
[333814088,1722526266352,-500.0,0.0001726,2]
[333814089,1722526266362,-243.669008,0.0001726,2]
[333814090,1722526266373,-167.808466,0.0001726,2]
[333814091,1722526266385,-167.808466,0.0001726,2]
[333814092,1722526266395,-630.64,0.0001726,2]
[333814093,1722526266405,-500.0,0.0001726,2]
[333814094,1722526266415,-500.0,0.0001726,2]
[333814095,1722526266427,-507.72,0.0001726,2]
[333814096,1722526266437,-958.75,0.0001726,2]
[333814097,1722526266447,-2970.46,0.0001726,2]
[333814098,1722526266459,-500.0,0.0001726,2]
[333814099,1722526266471,-500.0,0.0001726,2]
[333814100,1722526266481,-601.25,0.0001726,2]
[333814101,1722526266495,-500.0,0.0001726,2]
[333814102,1722526266507,-537.12,0.0001726,2]
[333814103,1722526266518,-500.0,0.0001726,2]
[333814104,1722526266528,-3014.99,0.0001726,2]
[333814105,1722526266540,-151.0,0.0001726,2]
[333814106,1722526266551,-1097.58,0.0001726,2]
[333814107,1722526266561,-1026.8,0.0001726,2]
[333814108,1722526266571,-1001.77,0.0001726,2]
[333814109,1722526266580,-208.640126,0.0001726,2]
[333814110,1722526266590,-208.640126,0.0001726,2]
[333814111,1722526266600,-1834.64,0.0001726,2]
[333814112,1722526266613,-717.67,0.0001726,2]
[333814113,1722526266623,-151.0,0.0001726,2]
[333814114,1722526266632,-560.01,0.0001726,2]
[333814115,1722526266642,-576.6,0.0001726,2]
[333814116,1722526266652,-853.2,0.0001726,2]
[333814117,1722526266668,-618.56,0.0001726,2]
[333814118,1722526266677,-500.0,0.0001726,2]
[333814119,1722526266686,-515.84,0.0001726,2]
[333814120,1722526266696,-500.0,0.0001726,2]
[333814121,1722526266705,-602.07,0.0001726,2]
[333814122,1722526266715,-500.0,0.0001726,2]
[333814123,1722526266724,-959.6,0.0001726,2]
[333814124,1722526266734,-500.0,0.0001726,2]
[333814125,1722526266750,-593.62,0.0001726,2]
[333814126,1722526266760,-813.83,0.0001726,2]
[333814127,1722526266770,-500.0,0.0001726,2]
[333814128,1722526266780,-527.79,0.0001726,2]
[333814129,1722526266790,-500.0,0.0001726,2]
[333814130,1722526266801,-745.56,0.0001726,2]
[333814131,1722526266821,-604.1,0.0001726,2]
[333814132,1722526266831,-1389.84,0.0001726,2]
[333814133,1722526266840,-2092.69,0.0001726,2]
[333814134,1722526266850,-663.98,0.0001726,2]
[333814135,1722526266859,-459.55767833,0.00017389,4]
[333814136,1722526266868,-646.69,0.00017534,2]
[333814137,1722526266878,-500.0,0.00017534,2]
[333814138,1722526266888,-208.51,0.00017534,2]
[333814139,1722526266898,-150.67399796,0.00017534,2]
[333814140,1722526266908,-555.92,0.00017534,2]
[333814141,1722526266918,-500.0,0.00017534,2]
[333814142,1722526266929,-576.59,0.00017534,2]
[333814143,1722526266940,-522.23,0.00017534,2]
[333814144,1722526266951,-500.0,0.00017534,2]
[333814145,1722526266961,-923.56,0.00017534,2]
[333814146,1722526266971,-541.8,0.00017534,2]
[333814147,1722526266981,-801.84,0.00017534,2]
[333814148,1722526266994,-500.0,0.00017534,2]
[333814149,1722526267005,-500.0,0.00017534,2]
[333814150,1722526267015,-151.0,0.00017534,2]
[333814151,1722526267026,-500.0,0.00017534,2]
[333814152,1722526267036,-738.18,0.00017534,2]
[333814153,1722526267047,-716.89,0.00017534,2]
[333814154,1722526267057,-534.35,0.00017534,2]
[333814155,1722526267066,-705.26,0.00017534,2]
[333814156,1722526267076,-1051.75,0.00017534,2]
[333814157,1722526267085,-500.0,0.00017534,2]
[333814158,1722526267096,-500.0,0.00017534,2]
[333814159,1722526267106,-1053.29,0.00017534,2]
[333814160,1722526267117,-433.35152988,0.00017534,2]
[333814161,1722526267127,-500.0,0.00017534,2]
[333814162,1722526267137,-435.018428,0.00017534,2]
[333814163,1722526267149,-435.018428,0.00017534,2]
[333814164,1722526267159,-349.346713,0.00017534,2]
[333814165,1722526267170,-630.64,0.00017534,2]
[333814166,1722526267180,-349.346713,0.00017534,2]
[333814167,1722526267190,-500.0,0.00017534,2]
[333814168,1722526267201,-500.0,0.00017534,2]
[333814169,1722526267210,-324.22717,0.00017534,2]
[333814170,1722526267221,-324.22717,0.00017534,2]
[333814171,1722526267232,-507.72,0.00017534,2]
[333814172,1722526267247,-958.75,0.00017534,2]
[333814173,1722526267256,-2970.46,0.00017534,2]
[333814174,1722526267266,-500.0,0.00017534,2]
[333814175,1722526267277,-500.0,0.00017534,2]
[333814176,1722526267288,-601.25,0.00017534,2]
[333814177,1722526267298,-500.0,0.00017534,2]
[333814178,1722526267308,-537.12,0.00017534,2]
[333814179,1722526267318,-500.0,0.00017534,2]
[333814180,1722526267328,-3014.99,0.00017534,2]
[333814181,1722526267338,-1097.58,0.00017534,2]
[333814182,1722526267348,-1026.8,0.00017534,2]
[333814183,1722526267358,-1001.77,0.00017534,2]
[333814184,1722526267369,-1834.64,0.00017534,2]
[333814185,1722526267383,-717.67,0.00017534,2]
[333814186,1722526267393,-560.01,0.00017534,2]
[333814187,1722526267403,-576.6,0.00017534,2]
[333814188,1722526267415,-853.2,0.00017534,2]
[333814189,1722526267425,-618.56,0.00017534,2]
[333814190,1722526267435,-500.0,0.00017534,2]
[333814191,1722526267444,-515.84,0.00017534,2]
[333814192,1722526267455,-500.0,0.00017534,2]
[333814193,1722526267465,-602.07,0.00017534,2]
[333814194,1722526267475,-398.06230695,0.00017534,2]
[333814195,1722526267484,-959.6,0.00017534,2]
[333814196,1722526267502,-500.0,0.00017534,2]
[333814197,1722526267512,-593.62,0.00017534,2]
[333814198,1722526267522,-813.83,0.00017534,2]
[333814199,1722526267532,-500.0,0.00017534,2]
[333814200,1722526267541,-527.79,0.00017534,2]
[333814201,1722526267552,-500.0,0.00017534,2]
[333814202,1722526267562,-745.56,0.00017534,2]
[333814203,1722526267572,-604.1,0.00017534,2]
[333814204,1722526267582,-1389.84,0.00017534,2]
[333814205,1722526267593,-2092.69,0.00017534,2]
[333814206,1722526267603,-663.98,0.00017534,2]
[333814207,1722526267613,-1987.12082745,0.000176,2]
[333814208,1722526267623,-151.0,0.00017648,2]
[333814209,1722526267632,-333.0,0.00017786,2]
[333814210,1722526267643,-646.69,0.00017808,2]
[333814211,1722526267652,-500.0,0.00017808,2]
[333814212,1722526267662,-208.51,0.00017808,2]
[333814213,1722526267672,-555.92,0.00017808,2]
[333814214,1722526267682,-500.0,0.00017808,2]
[333814215,1722526267693,-186.708549,0.00017808,2]
[333814216,1722526267703,-576.59,0.00017808,2]
[333814217,1722526267714,-186.708549,0.00017808,2]
[333814218,1722526267725,-522.23,0.00017808,2]
[333814219,1722526267735,-500.0,0.00017808,2]
[333814220,1722526267750,-923.56,0.00017808,2]
[333814221,1722526267761,-541.8,0.00017808,2]
[333814222,1722526267770,-801.84,0.00017808,2]
[333814223,1722526267781,-500.0,0.00017808,2]
[333814224,1722526267790,-500.0,0.00017808,2]
[333814225,1722526267800,-207.76446436,0.00017808,2]
[333814226,1722526267809,-738.18,0.00017808,2]
[333814227,1722526267819,-716.89,0.00017808,2]
[333814228,1722526267829,-534.35,0.00017808,2]
[333814229,1722526267839,-705.26,0.00017808,2]
[333814230,1722526267849,-1051.75,0.00017808,2]
[333814231,1722526267858,-500.0,0.00017808,2]
[333814232,1722526267868,-500.0,0.00017808,2]
[333814233,1722526267877,-1053.29,0.00017808,2]
[333814234,1722526267887,-500.0,0.00017808,2]
[333814235,1722526267897,-630.64,0.00017808,2]
[333814236,1722526267907,-409.03343954,0.00017808,2]
[333814237,1722526267916,-500.0,0.00017808,2]
[333814238,1722526267927,-507.72,0.00017808,2]
[333814239,1722526267936,-958.75,0.00017808,2]
[333814240,1722526267946,-2970.46,0.00017808,2]
[333814241,1722526267955,-500.0,0.00017808,2]
[333814242,1722526267965,-500.0,0.00017808,2]
[333814243,1722526267975,-601.25,0.00017808,2]
[333814244,1722526267984,-529.56081982,0.00017808,2]
[333814245,1722526268003,-537.12,0.00017808,2]
[333814246,1722526268013,-500.0,0.00017808,2]
[333814247,1722526268022,-3014.99,0.00017808,2]
[333814248,1722526268032,-1097.58,0.00017808,2]
[333814249,1722526268042,-1026.8,0.00017808,2]
[333814250,1722526268051,-1001.77,0.00017808,2]
[333814251,1722526268060,-1834.64,0.00017808,2]
[333814252,1722526268071,-717.67,0.00017808,2]
[333814253,1722526268080,-560.01,0.00017808,2]
[333814254,1722526268090,-576.6,0.00017808,2]
[333814255,1722526268099,-853.2,0.00017808,2]
[333814256,1722526268109,-618.56,0.00017808,2]
[333814257,1722526268119,-500.0,0.00017808,2]
[333814258,1722526268130,-515.84,0.00017808,2]
[333814259,1722526268140,-500.0,0.00017808,2]
[333814260,1722526268150,-602.07,0.00017808,2]
[333814261,1722526268160,-959.6,0.00017808,2]
[333814262,1722526268170,-500.0,0.00017808,2]
[333814263,1722526268180,-593.62,0.00017808,2]
[333814264,1722526268190,-813.83,0.00017808,2]
[333814265,1722526268200,-500.0,0.00017808,2]
[333814266,1722526268211,-527.79,0.00017808,2]
[333814267,1722526268220,-500.0,0.00017808,2]
[333814268,1722526268231,-745.56,0.00017808,2]
[333814269,1722526268245,-604.1,0.00017808,2]
[333814270,1722526268255,-1389.84,0.00017808,2]
[333814271,1722526268265,-2092.69,0.00017808,2]
[333814272,1722526268277,-158.170833,0.00017808,2]
[333814273,1722526268287,-663.98,0.00017808,2]
[333814274,1722526268296,-158.170833,0.00017808,2]
[333814275,1722526268306,-1091.36515182,0.0001784,2]
[333814276,1722526268316,-339.45593599,0.0001784,2]
[333814277,1722526268327,-30000.0,0.0001784,2]
[333814278,1722526268337,-188.1530495,0.0001784,2]
[333814279,1722526268346,-196.30125481,0.0001784,2]
[333814280,1722526268356,-250.17273888,0.0001784,2]
[333814281,1722526268366,-816.07415827,0.0001784,2]
[333814282,1722526268375,-156.54637222,0.00017882,2]
[333814283,1722526268389,-2213.69400139,0.000179,2]
[333814284,1722526268399,-2213.69400137,0.000179,2]
[333814285,1722526268408,-2213.69400137,0.000179,2]
[333814286,1722526268417,-2213.69400137,0.000179,2]
[333814287,1722526268427,-154.65203293,0.00017932,2]
[333814288,1722526268436,-182.5,0.00018,2]
[333814289,1722526268446,-1043.12685393,0.00018,2]
[333814290,1722526268457,-205.45616966,0.00018,2]
[333814291,1722526268467,-646.69,0.00018082,2]
[333814292,1722526268476,-500.0,0.00018082,2]
[333814293,1722526268485,-151.0,0.00018082,2]
[333814294,1722526268499,-208.51,0.00018082,2]
[333814295,1722526268508,-555.92,0.00018082,2]
[333814296,1722526268517,-500.0,0.00018082,2]
[333814297,1722526268527,-576.59,0.00018082,2]
[333814298,1722526268538,-522.23,0.00018082,2]
[333814299,1722526268548,-500.0,0.00018082,2]
[333814300,1722526268558,-923.56,0.00018082,2]
[333814301,1722526268568,-541.8,0.00018082,2]
[333814302,1722526268578,-151.0,0.00018082,2]
[333814303,1722526268588,-801.84,0.00018082,2]
[333814304,1722526268598,-500.0,0.00018082,2]
[333814305,1722526268609,-500.0,0.00018082,2]
[333814306,1722526268619,-151.0,0.00018082,2]
[333814307,1722526268629,-738.18,0.00018082,2]
[333814308,1722526268639,-716.89,0.00018082,2]
[333814309,1722526268650,-534.35,0.00018082,2]
[333814310,1722526268661,-705.26,0.00018082,2]
[333814311,1722526268671,-1051.75,0.00018082,2]
[333814312,1722526268680,-500.0,0.00018082,2]
[333814313,1722526268691,-500.0,0.00018082,2]
[333814314,1722526268702,-1053.29,0.00018082,2]
[333814315,1722526268713,-500.0,0.00018082,2]
[333814316,1722526268725,-167.808466,0.00018082,2]
[333814317,1722526268736,-167.808466,0.00018082,2]
[333814318,1722526268749,-630.64,0.00018082,2]
[333814319,1722526268758,-500.0,0.00018082,2]
[333814320,1722526268768,-507.72,0.00018082,2]
[333814321,1722526268778,-958.75,0.00018082,2]
[333814322,1722526268788,-2970.46,0.00018082,2]
[333814323,1722526268797,-500.0,0.00018082,2]
[333814324,1722526268807,-500.0,0.00018082,2]
[333814325,1722526268817,-601.25,0.00018082,2]
[333814326,1722526268826,-537.12,0.00018082,2]
[333814327,1722526268836,-500.0,0.00018082,2]
[333814328,1722526268845,-3014.99,0.00018082,2]
[333814329,1722526268856,-1097.58,0.00018082,2]
[333814330,1722526268866,-1026.8,0.00018082,2]
[333814331,1722526268876,-1001.77,0.00018082,2]
[333814332,1722526268887,-1834.64,0.00018082,2]
[333814333,1722526268897,-717.67,0.00018082,2]
[333814334,1722526268907,-560.01,0.00018082,2]
[333814335,1722526269003,-576.6,0.00018082,2]
[333814336,1722526269013,-853.2,0.00018082,2]
[333814337,1722526269022,-151.0,0.00018082,2]
[333814338,1722526269032,-618.56,0.00018082,2]
[333814339,1722526269041,-500.0,0.00018082,2]
[333814340,1722526269051,-515.84,0.00018082,2]
[333814341,1722526269061,-500.0,0.00018082,2]
[333814342,1722526269071,-602.07,0.00018082,2]
[333814343,1722526269080,-959.6,0.00018082,2]
[333814344,1722526269091,-500.0,0.00018082,2]
[333814345,1722526269101,-151.0,0.00018082,2]
[333814346,1722526269111,-593.62,0.00018082,2]
[333814347,1722526269121,-151.0,0.00018082,2]
[333814348,1722526269132,-489.151913,0.00018082,2]
[333814349,1722526269142,-813.83,0.00018082,2]
[333814350,1722526269151,-489.151913,0.00018082,2]
[333814351,1722526269161,-500.0,0.00018082,2]
[333814352,1722526269171,-500.0,0.00018082,2]
[333814353,1722526269180,-527.79,0.00018082,2]
[333814354,1722526269190,-745.56,0.00018082,2]
[333814355,1722526269199,-151.0,0.00018082,2]
[333814356,1722526269208,-604.1,0.00018082,2]
[333814357,1722526269218,-1389.84,0.00018082,2]
[333814358,1722526269228,-2092.69,0.00018082,2]
[333814359,1722526269241,-663.98,0.00018082,2]
[333814360,1722526269250,-600.0,0.00018215,2]
[333814361,1722526269258,-206.9081725,0.00018303,2]
[333814362,1722526269268,-4485.52915841,0.00018342,2]
[333814363,1722526269277,-646.69,0.00018356,2]
[333814364,1722526269286,-500.0,0.00018356,2]
[333814365,1722526269295,-208.51,0.00018356,2]
[333814366,1722526269305,-155.126107,0.00018356,2]
[333814367,1722526269315,-151.24440752,0.00018356,2]
[333814368,1722526269325,-555.92,0.00018356,2]
[333814369,1722526269335,-576.59,0.00018356,2]
[333814370,1722526269345,-522.23,0.00018356,2]
[333814371,1722526269356,-500.0,0.00018356,2]
[333814372,1722526269366,-923.56,0.00018356,2]
[333814373,1722526269381,-541.8,0.00018356,2]
[333814374,1722526269391,-801.84,0.00018356,2]
[333814375,1722526269400,-500.0,0.00018356,2]
[333814376,1722526269410,-500.0,0.00018356,2]
[333814377,1722526269420,-738.18,0.00018356,2]
[333814378,1722526269430,-716.89,0.00018356,2]
[333814379,1722526269439,-534.35,0.00018356,2]
[333814380,1722526269449,-705.26,0.00018356,2]
[333814381,1722526269460,-1051.75,0.00018356,2]
[333814382,1722526269470,-500.0,0.00018356,2]
[333814383,1722526269479,-500.0,0.00018356,2]
[333814384,1722526269493,-1053.29,0.00018356,2]
[333814385,1722526269502,-500.0,0.00018356,2]
[333814386,1722526269511,-435.018428,0.00018356,2]
[333814387,1722526269520,-435.018432,0.00018356,2]
[333814388,1722526269530,-630.64,0.00018356,2]
[333814389,1722526269539,-500.0,0.00018356,2]
[333814390,1722526269548,-507.72,0.00018356,2]
[333814391,1722526269558,-958.75,0.00018356,2]
[333814392,1722526269567,-2970.46,0.00018356,2]
[333814393,1722526269578,-500.0,0.00018356,2]
[333814394,1722526269588,-500.0,0.00018356,2]
[333814395,1722526269598,-601.25,0.00018356,2]
[333814396,1722526269608,-537.12,0.00018356,2]
[333814397,1722526269618,-500.0,0.00018356,2]
[333814398,1722526269628,-3014.99,0.00018356,2]
[333814399,1722526269638,-1097.58,0.00018356,2]
[333814400,1722526269647,-1026.8,0.00018356,2]
[333814401,1722526269658,-1001.77,0.00018356,2]
[333814402,1722526269668,-1834.64,0.00018356,2]
[333814403,1722526269679,-717.67,0.00018356,2]
[333814404,1722526269688,-560.01,0.00018356,2]
[333814405,1722526269698,-576.6,0.00018356,2]
[333814406,1722526269708,-853.2,0.00018356,2]
[333814407,1722526269719,-618.56,0.00018356,2]
[333814408,1722526269728,-366.05649802,0.00018356,2]
[333814409,1722526269740,-515.84,0.00018356,2]
[333814410,1722526269750,-421.73506148,0.00018356,2]
[333814411,1722526269759,-602.07,0.00018356,2]
[333814412,1722526269768,-959.6,0.00018356,2]
[333814413,1722526269777,-500.0,0.00018356,2]
[333814414,1722526269788,-593.62,0.00018356,2]
[333814415,1722526269798,-813.83,0.00018356,2]
[333814416,1722526269807,-500.0,0.00018356,2]
[333814417,1722526269818,-488.69289627,0.00018356,2]
[333814418,1722526269827,-527.79,0.00018356,2]
[333814419,1722526269837,-745.56,0.00018356,2]
[333814420,1722526269846,-604.1,0.00018356,2]
[333814421,1722526269856,-1389.84,0.00018356,2]
[333814422,1722526269866,-2092.69,0.00018356,2]
[333814423,1722526269875,-663.98,0.00018356,2]
[333814424,1722526269885,-42715.97324398,0.000184,10]
[333814425,1722526269994,-500.0,0.00013698,2]
[333814426,1722526270003,-2666.25,0.000184,10]
[333814427,1722526270016,-632.13,0.000184,10]
[333814428,1722526270027,-315.01731271,0.000184,10]
[333814429,1722526270277,-12515.93130272,0.000184,10]
[333814430,1722526270289,-151.0,0.000184,2]
[333814431,1722526270299,-349.346713,0.000184,2]
[333814432,1722526270309,-349.346713,0.000184,2]
[333814433,1722526270318,-324.22717,0.000184,2]
[333814434,1722526270328,-324.22717,0.000184,2]
[333814435,1722526270337,-333.0,0.00018459,2]
[333814436,1722526270347,-12.63161128,0.00018603,2]
[333814437,1722526270359,-194.27656122,0.00018603,2]
[333814438,1722526270369,-206.9081725,0.00018603,2]
[333814439,1722526270379,-646.69,0.0001863,2]